bitfinex/quotes_ETHUSD_20241212
["timestamp","ask_amount","ask_price","bid_price","bid_amount"]
[1733963586071,2.61335,3826.5,3825.4,0.7879362]
[1733963586305,2.61335,3826.5,3825.6,0.8322]
[1733963586431,0.31108579,3827.0,3825.6,0.8322]
[1733963586635,2.61337,3826.5,3825.6,0.8322]
[1733963586886,0.31108579,3826.9,3825.6,0.8322]
[1733963587099,0.19447826,3826.8,3825.8,0.8322]
[1733963587238,0.19447826,3827.0,3826.0,0.8322]
[1733963587443,0.19447826,3827.0,3826.2,0.8322]
[1733963587762,0.19447826,3827.1,3826.2,0.8322]
[1733963588147,0.19447826,3827.1,3825.9,0.13822]
[1733963588148,0.19447826,3827.1,3826.4,0.8322]
[1733963588352,0.19447826,3827.4,3826.6,0.8322]
[1733963589151,2.61269,3827.5,3826.6,0.8322]
[1733963589686,0.31108579,3827.9,3826.6,0.8322]
[1733963589849,2.39331346,3827.7,3826.6,0.8322]
[1733963590052,2.61321,3826.8,3826.6,0.8322]
[1733963590255,2.61294,3827.1,3826.0,0.8322]
[1733963590551,2.80763135,3827.0,3826.0,0.8322]
[1733963590752,0.19462135,3826.9,3826.1,0.201594]
[1733963590952,0.19462135,3826.9,3826.2,0.8322]
[1733963591552,0.19462135,3827.3,3826.4,1.04536]
[1733963591946,0.19462135,3827.2,3826.5,0.8322]
[1733963592091,2.80744135,3827.3,3826.5,0.8322]
[1733963592261,0.19462135,3827.2,3826.5,0.8322]
[1733963592615,2.61295,3827.1,3826.5,0.8322]
[1733963593130,0.19466649,3827.0,3826.5,0.8322]
[1733963593817,0.19466175,3827.2,3826.5,0.8322]
[1733963594754,0.19466175,3827.4,3826.5,0.8322]
[1733963594958,0.19466175,3827.3,3826.5,1.87754]
[1733963595195,0.19466175,3827.5,3826.7,0.8322]
[1733963595423,0.19466175,3827.6,3826.7,0.8322]
[1733963595737,0.19466175,3827.8,3826.9,1.87742]
[1733963595937,0.19466175,3827.7,3827.0,0.8322]
[1733963596138,0.19466175,3828.2,3827.0,0.8322]
[1733963596289,2.61241,3827.9,3827.0,0.8322]
[1733963596489,2.80714175,3827.8,3827.0,0.8322]
[1733963596688,2.61248,3827.8,3827.0,0.8322]
[1733963596947,0.19457391,3827.7,3827.0,0.8322]
[1733963597138,2.80716391,3827.7,3827.0,0.8322]
[1733963597287,0.19457391,3827.6,3827.0,0.8322]
[1733963597851,2.6124,3827.9,3827.0,0.8322]
[1733963598010,2.80703615,3827.8,3827.0,0.8322]
[1733963598190,0.19457615,3827.7,3827.0,0.8322]
[1733963599025,2.80713615,3827.7,3827.0,0.8322]
[1733963599204,2.6126,3827.6,3827.0,0.8322]
[1733963600028,0.31119458,3828.0,3827.0,0.8322]
[1733963600346,2.61254,3827.7,3827.0,0.8322]
[1733963606097,0.31110251,3828.1,3827.0,0.8322]
[1733963606298,2.61246,3827.8,3827.0,0.8322]
[1733963607025,2.92341251,3828.1,3827.0,1.87739]
[1733963607226,0.19441574,3828.0,3827.2,0.7799]
[1733963608168,2.80675574,3828.0,3827.2,0.7799]
[1733963608370,1.39857699,3828.6,3827.2,0.7799]
[1733963608371,2.61204,3828.5,3827.2,0.7799]
[1733963608532,2.6122,3828.2,3827.2,0.7799]
[1733963608867,0.19447183,3828.1,3827.3,0.18251]
[1733963609068,2.61226,3828.1,3827.2,0.7799]
[1733963609271,0.19447183,3828.0,3827.2,0.7799]
[1733963609660,2.61226,3828.1,3827.2,0.7799]
[1733963609859,0.19456018,3828.0,3827.2,0.7799]
[1733963610962,0.19456018,3828.4,3827.3,1.07121243]
[1733963611174,0.19456018,3828.4,3827.7,1.045]
[1733963611342,0.19456018,3828.7,3827.9,0.7799]
[1733963611545,0.19456018,3828.9,3828.1,0.7799]
[1733963611744,0.19456018,3828.8,3828.1,0.7799]
[1733963612057,0.19456018,3828.9,3828.1,0.7799]
[1733963612276,0.19456018,3828.8,3828.2,0.182483]
[1733963612583,0.19456018,3828.9,3828.2,0.182483]
[1733963612888,0.19456018,3828.8,3828.3,0.7799]
[1733963613090,0.7900963,3829.4,3828.3,0.7799]
[1733963613091,0.1946702,3828.9,3828.3,0.7799]
[1733963613245,2.74429257,3829.8,3828.3,0.80601642]
[1733963613246,2.61117,3829.7,3828.3,0.80601642]
[1733963613439,0.4788,3829.8,3828.5,0.7799]
[1733963614386,2.61137,3829.5,3828.5,0.7799]
[1733963614616,2.39331346,3829.2,3828.5,0.7799]
[1733963614775,2.61206,3828.4,3827.1,1.04517]
[1733963614967,2.61183,3828.8,3827.3,0.7799]
[1733963615162,2.61199,3828.5,3827.4,0.962404]
[1733963615404,0.19477492,3828.4,3827.4,0.962404]
[1733963616119,0.19477492,3828.4,3827.4,1.227594]
[1733963616269,2.61199,3828.5,3827.5,0.7799]
[1733963616596,0.19487202,3828.4,3827.5,0.7799]
[1733963616898,0.19487642,3828.4,3827.7,0.815]
[1733963617104,2.80700642,3828.3,3827.7,0.815]
[1733963617404,2.61199,3828.5,3827.7,0.815]
[1733963617603,0.19488136,3828.4,3827.7,0.815]
[1733963617901,0.19488136,3828.3,3827.8,0.13157494]
[1733963618063,0.19488136,3828.4,3827.8,0.13157494]
[1733963618273,0.19488136,3828.3,3827.8,0.13157494]
[1733963618504,0.19488136,3828.4,3827.8,0.13157494]
[1733963618702,0.19488136,3828.3,3827.8,0.13157494]
[1733963618879,0.19488136,3828.4,3827.8,0.13157494]
[1733963619065,0.19488136,3828.3,3827.8,0.13157494]
[1733963619401,0.19488136,3828.3,3827.7,0.815]
[1733963619604,2.61246,3827.8,3827.7,0.815]
[1733963620113,2.80731998,3827.8,3827.7,0.815]
[1733963620465,0.19485998,3827.8,3827.7,0.815]
[1733963620794,0.4788,3828.4,3827.7,0.815]
[1733963620795,2.80719998,3828.0,3827.7,0.815]
[1733963620971,0.19485998,3827.9,3827.7,0.815]
[1733963621180,0.19485998,3827.9,3826.5,3.0]
[1733963621181,0.79057598,3828.4,3826.7,0.815]
[1733963621476,2.6126,3827.6,3826.8,1.7465]
[1733963621801,0.4788,3828.4,3826.8,1.7465]
[1733963621802,0.31177598,3828.0,3826.8,1.1965]
[1733963621999,2.61267,3827.5,3826.8,0.815]
[1733963622213,2.61302,3827.0,3826.8,0.815]
[1733963622374,0.4788,3827.5,3826.8,0.815]
[1733963622681,0.19493052,3827.4,3826.8,0.815]
[1733963622882,0.19493052,3827.3,3826.8,0.815]
[1733963623178,0.19493052,3827.2,3826.8,0.815]
[1733963623489,0.19493052,3827.1,3826.8,0.815]
[1733963623696,0.19493052,3827.0,3826.8,0.815]
[1733963623906,0.19493052,3826.9,3825.7,0.815]
[1733963624111,0.1949523,3826.8,3825.9,0.815]
[1733963624436,2.61322,3826.7,3825.9,0.815]
[1733963625476,2.61294,3827.1,3825.9,0.815]
[1733963625715,2.61318,3826.8,3825.9,0.815]
[1733963626916,0.31189468,3827.3,3825.9,0.815]
[1733963626917,2.61287,3827.2,3825.9,0.815]
[1733963627125,2.61318,3826.8,3825.9,0.815]
[1733963627345,0.19489192,3826.7,3825.9,0.815]
[1733963627631,2.61318,3826.8,3825.9,0.815]
[1733963627836,2.61315,3826.8,3825.9,1.34359694]
[1733963628141,2.61287,3827.2,3826.0,0.815]
[1733963628142,2.61322,3826.7,3826.0,0.815]
[1733963628517,2.61336,3826.5,3826.0,0.815]
[1733963628684,2.61336,3826.5,3826.1,0.17689863]
[1733963628888,2.61336,3826.5,3826.0,0.815]
[1733963629282,2.61336,3826.5,3826.1,0.02349333]
[1733963629487,0.31159156,3826.9,3826.1,0.02349333]
[1733963629707,2.80795827,3826.8,3826.1,0.02349333]
[1733963629891,0.19474827,3826.7,3826.0,0.815]
[1733963630409,2.61321,3826.8,3826.0,0.815]
[1733963633112,2.6134,3826.5,3826.0,0.815]
[1733963634735,1.08747448,3827.3,3826.0,0.815]
[1733963635073,2.61316,3826.8,3826.0,0.815]
[1733963635373,2.61326,3826.7,3826.0,0.815]
[1733963636470,1.08747448,3827.3,3826.0,0.815]
[1733963636768,0.4788,3827.1,3826.0,0.815]
[1733963636971,2.61308,3826.9,3826.0,0.815]
[1733963637244,2.61362,3826.1,3826.0,0.815]
[1733963637614,2.61356,3826.2,3826.0,0.815]
[1733963637752,1.39861899,3827.0,3826.0,0.815]
[1733963637952,2.61362,3826.1,3826.0,0.815]
[1733963638196,5.95407848,3827.0,3826.0,0.815]
[1733963638197,2.61357,3826.2,3826.0,0.815]
[1733963638352,2.61362,3826.1,3826.0,0.815]
[1733963638553,2.61331,3826.6,3826.0,0.815]
[1733963638803,2.61315,3826.8,3826.1,0.02613555]
[1733963639005,2.613,3827.1,3826.0,0.815]
[1733963639309,2.61295,3827.1,3826.0,0.815]
[1733963639609,2.39331346,3828.0,3826.3,0.8145]
[1733963639911,2.61246,3827.8,3826.3,0.8145]
[1733963640087,1.09595955,3827.9,3826.3,0.8145]
[1733963640088,2.61273,3827.5,3826.4,0.8145]
[1733963640455,2.61281,3827.3,3826.4,0.8145]
[1733963640770,2.61296,3827.1,3826.4,0.8145]
[1733963641193,2.61273,3827.5,3826.4,0.8145]
[1733963641391,1.56627448,3828.1,3826.6,0.8145]
[1733963641619,2.61241,3827.9,3826.7,0.8145]
[1733963641772,2.80690979,3827.8,3826.9,0.8145]
[1733963641975,2.61247,3827.8,3826.9,0.8145]
[1733963642244,0.31110366,3828.1,3826.9,0.8145]
[1733963642531,3.48078794,3828.3,3826.9,0.8145]
[1733963642532,2.61242,3827.9,3826.9,0.8145]
[1733963642676,0.19453093,3827.8,3826.9,0.8145]
[1733963642876,2.61247,3827.8,3826.9,0.8145]
[1733963643375,2.61229,3828.1,3826.9,0.8145]
[1733963643580,2.61229,3828.1,3827.1,0.8145]
[1733963643923,0.31130874,3828.5,3827.1,0.8145]
[1733963644128,2.61227,3828.1,3827.1,0.8145]
[1733963644625,0.31130874,3828.5,3827.3,1.04512]
[1733963644626,2.61209,3828.4,3827.3,1.04512]
[1733963644817,0.19469594,3828.3,3827.4,0.8145]
[1733963644977,0.19469594,3828.3,3827.5,1.00307441]
[1733963645229,0.19469594,3828.8,3827.7,1.85949]
[1733963645380,0.19469594,3828.7,3827.8,0.84061964]
[1733963645729,0.19469594,3828.9,3827.8,0.8145]
[1733963645881,0.19469594,3828.8,3827.8,0.8145]
[1733963646076,0.19469594,3828.9,3827.9,0.84061945]
[1733963646334,2.80640594,3828.9,3828.0,0.8145]
[1733963646635,0.19469594,3828.8,3828.0,0.8145]
[1733963646801,2.61204,3828.5,3828.0,0.8145]
[1733963646980,0.4788,3829.0,3828.0,0.8145]
[1733963647180,2.61214,3828.3,3828.0,0.8145]
[1733963647676,0.31149309,3828.7,3828.0,0.8145]
[1733963647927,0.19467679,3828.9,3828.0,0.8145]
[1733963648232,0.19467679,3828.8,3828.0,0.8145]
[1733963648437,0.19467679,3828.7,3828.0,0.8145]
[1733963648580,0.19467679,3828.6,3828.0,0.8145]
[1733963648781,0.19467679,3828.9,3828.0,0.8145]
[1733963649016,2.61166,3829.0,3828.0,0.8145]
[1733963649219,0.19467679,3828.9,3828.0,0.8145]
[1733963649742,0.19467679,3829.1,3828.2,0.8275]
[1733963650042,2.61151,3829.2,3828.3,1.014739]
[1733963650187,2.80621002,3829.1,3828.3,1.014739]
[1733963650533,0.19462002,3829.0,3828.3,0.8275]
[1733963650676,0.19462002,3829.3,3828.3,0.8275]
[1733963650882,0.19462002,3829.2,3828.3,0.8275]
[1733963651130,2.61156,3829.2,3828.3,0.8275]
[1733963651291,0.19462002,3829.1,3828.3,0.8275]
[1733963651989,2.80620002,3829.1,3828.3,0.8275]
[1733963652187,2.61158,3829.1,3828.3,1.014742]
[1733963652468,4.17750448,3829.7,3828.3,1.014742]
[1733963652631,2.61146,3829.3,3828.3,1.014742]
[1733963652797,0.19440766,3829.2,3828.3,1.014742]
[1733963653352,0.14440766,3829.2,3828.3,1.014742]
[1733963653484,1.56627448,3829.7,3828.3,0.8275]
[1733963653685,2.61162,3829.1,3828.3,0.8275]
[1733963654534,2.61138,3829.4,3828.3,0.8275]
[1733963654744,2.61141,3829.4,3828.3,0.85361579]
[1733963655026,2.87211346,3829.9,3828.3,0.8275]
[1733963655027,2.61158,3829.1,3828.3,0.8275]
[1733963655848,2.6111,3829.8,3828.3,0.8275]
[1733963655987,2.61159,3829.1,3828.3,0.8275]
[1733963656631,2.6111,3829.8,3828.3,0.8275]
[1733963657145,2.61172,3828.9,3828.3,0.8275]
[1733963657615,2.6111,3829.8,3828.3,0.8275]
[1733963657825,0.4788,3829.4,3828.3,0.8275]
[1733963658025,2.39331346,3829.1,3828.0,0.8176]
[1733963658187,2.61219,3828.2,3828.0,0.8176]
[1733963658837,2.61233,3828.0,3827.0,0.8176]
[1733963658987,2.61233,3828.0,3827.1,0.32109135]
[1733963659345,2.58883667,3828.0,3826.8,0.8176]
[1733963659838,2.87211346,3828.7,3826.8,0.8176]
[1733963660142,2.61255,3827.7,3826.8,0.8176]
[1733963661221,3.95958794,3828.7,3826.8,0.8176]
[1733963661222,1.56627448,3828.7,3826.8,0.8176]
[1733963661421,3.09066,3828.7,3826.9,0.8158]
[1733963661640,2.61247,3827.8,3826.9,0.8158]
[1733963661783,2.6122,3828.2,3826.9,0.8158]
[1733963661988,2.61247,3827.8,3826.9,0.8158]
[1733963664156,2.61235,3828.0,3826.9,0.8158]
[1733963664312,2.6124,3827.9,3826.9,0.8158]
[1733963664496,1.56627448,3828.7,3826.9,0.8158]
[1733963664497,2.61219,3828.2,3827.0,0.186105]
[1733963664847,2.61255,3827.7,3826.9,0.8158]
[1733963666018,2.39331346,3828.8,3826.9,0.8158]
[1733963666019,0.4788,3828.3,3826.9,0.8158]
[1733963666223,2.61254,3827.7,3826.9,0.8158]
[1733963666550,2.61231,3828.1,3826.9,0.8158]
[1733963666551,2.61262,3827.6,3826.9,0.8158]
[1733963668152,2.61244,3827.9,3827.0,0.02612665]
[1733963668490,2.80725423,3827.8,3827.1,0.8158]
[1733963668653,0.19478423,3827.7,3827.1,0.8158]
[1733963668833,0.19478423,3828.0,3827.3,0.8158]
[1733963669188,0.19478423,3827.9,3827.3,0.8158]
[1733963669574,2.61241,3827.9,3827.3,0.8158]
[1733963669947,2.61253,3827.7,3827.3,0.8158]
[1733963670294,2.61294,3827.1,3827.0,0.7981]
[1733963670469,2.80781473,3827.1,3826.5,0.7981]
[1733963670788,0.19484316,3827.0,3826.5,0.7981]
[1733963671332,2.61305,3827.0,3826.5,0.7981]
[1733963671510,0.19484316,3827.4,3826.5,0.7981]
[1733963671511,2.61322,3826.7,3826.5,0.7981]
[1733963671717,2.61335,3826.5,3826.4,0.02077534]
[1733963672020,2.80813226,3826.5,3826.4,0.02077534]
[1733963672539,0.19478226,3826.5,3826.4,0.02077534]
[1733963672728,2.61322,3826.7,3826.4,0.02077534]
[1733963672895,0.19478226,3826.6,3826.4,0.02077534]
[1733963673389,0.19454968,3826.6,3826.4,0.02077534]
[1733963675095,0.31127949,3827.0,3826.4,0.02077534]
[1733963675296,2.61335,3826.5,3826.4,0.02077534]
[1733963676824,2.80764572,3826.5,3826.4,0.02077534]
[1733963681105,2.80764572,3826.5,3825.5,0.7703]
[1733963681303,2.61378,3825.9,3825.5,0.7703]
[1733963683376,2.6136,3826.2,3825.5,0.7703]
[1733963683581,2.61341,3826.5,3825.5,0.7703]
[1733963683894,0.4788,3827.0,3825.7,0.7703]
[1733963684051,3.11740445,3827.0,3825.7,1.04555]
[1733963684251,0.19399402,3826.9,3825.8,0.7703]
[1733963684500,2.61329,3826.6,3826.0,0.7703]
[1733963684705,0.4788,3827.3,3826.0,0.7703]
[1733963685206,2.61302,3827.0,3826.0,0.7703]
[1733963685502,0.19404307,3826.9,3826.0,0.7703]
[1733963686087,2.61302,3827.0,3826.0,0.7703]
[1733963686289,0.19421477,3826.9,3826.1,0.181579]
[1733963686495,2.61302,3827.0,3826.1,0.181579]
[1733963686674,0.19421154,3826.9,3826.1,0.181579]
[1733963687190,0.19432092,3826.9,3826.2,0.7703]
[1733963687397,0.19433749,3827.4,3826.4,1.04535]
[1733963687714,0.19433749,3827.4,3826.6,0.7703]
[1733963688005,0.19433749,3827.6,3826.6,0.7703]
[1733963688215,0.19433749,3827.5,3826.6,0.7703]
[1733963688374,2.61276,3827.4,3826.6,0.7703]
[1733963688579,0.31093999,3827.7,3826.6,0.7703]
[1733963688580,2.80716749,3827.3,3826.6,0.7703]
[1733963688903,2.61283,3827.3,3826.6,0.7703]
[1733963689119,2.61265,3827.6,3826.6,0.7703]
[1733963689266,0.19446228,3827.5,3826.6,0.7703]
[1733963689470,0.19446228,3827.4,3826.7,0.181566]
[1733963689722,0.19446228,3827.5,3826.7,0.181566]
[1733963690005,2.61265,3827.6,3826.7,0.181566]
[1733963691415,0.31113059,3827.7,3826.7,0.181566]
[1733963691713,2.39331346,3827.8,3826.6,0.7703]
[1733963691881,2.70444405,3827.8,3826.6,0.7703]
[1733963692205,2.61277,3827.4,3826.6,0.7703]
[1733963692411,2.6126,3827.6,3826.6,0.7703]
[1733963692565,2.61273,3827.5,3826.6,0.7703]
[1733963692759,2.61274,3827.4,3826.6,0.7703]
[1733963694815,0.31113059,3827.7,3826.6,0.7703]
[1733963695014,2.6128,3827.4,3826.6,0.7703]
[1733963700531,2.61329,3826.6,3826.3,0.8015]
[1733963700668,2.61336,3826.5,3826.3,0.8015]
[1733963700873,2.61336,3826.5,3826.0,0.8015]
[1733963701179,2.61361,3826.2,3825.2,0.8015]
[1733963701392,5.00659346,3826.6,3824.6,2.39331346]
[1733963701393,2.92519154,3826.5,3825.3,1.04566]
[1733963701732,2.92512154,3826.5,3825.4,0.8015]
[1733963701950,2.6135,3826.3,3825.4,0.8015]
[1733963702737,0.31177154,3826.5,3825.4,0.8015]
[1733963702942,2.61385,3825.8,3825.4,0.8015]
[1733963703293,2.61391,3825.7,3825.4,0.8015]
[1733963703634,0.31177154,3826.1,3824.4,1.04591]
[1733963703635,2.61399,3825.6,3824.5,0.8015]
[1733963703844,2.61383,3825.8,3824.5,1.84738]
[1733963704007,2.92560154,3825.8,3824.7,0.8015]
[1733963704187,2.61383,3825.8,3824.7,1.84733]
[1733963705201,0.31177154,3825.9,3824.7,0.8015]
[1733963705404,2.61398,3825.6,3824.7,0.8015]
[1733963705605,2.92557154,3825.9,3824.7,0.8015]
[1733963705806,2.6138,3825.9,3824.7,0.986235]
[1733963706019,2.61383,3825.8,3824.7,0.986235]
[1733963706427,1.39924602,3826.1,3824.7,0.986235]
[1733963706753,2.6141,3825.4,3824.7,0.8015]
[1733963707096,2.61395,3825.7,3824.7,0.8015]
[1733963708055,0.31177154,3826.0,3824.7,0.8015]
[1733963708056,0.31177154,3825.9,3824.7,0.8015]
[1733963708195,2.6141,3825.4,3824.7,0.8015]
[1733963708552,2.61398,3825.6,3824.7,0.8015]
[1733963709460,2.61411,3825.4,3824.7,0.8015]
[1733963709637,0.4788,3825.6,3824.7,0.8015]
[1733963709838,2.61417,3825.3,3824.7,0.8015]
[1733963710737,2.61424,3825.2,3824.7,0.8015]
[1733963710947,2.39331346,3825.4,3823.8,0.8193]
[1733963711268,2.70455366,3825.4,3824.0,0.8193]
[1733963711477,2.61417,3825.3,3824.0,0.8193]
[1733963711604,2.61436,3825.1,3824.0,0.8193]
[1733963711957,0.31090988,3825.3,3824.0,1.04601]
[1733963712156,2.61426,3825.2,3824.1,0.8193]
[1733963712453,2.61431,3825.1,3824.1,0.8193]
[1733963712710,0.31090988,3825.5,3824.1,0.8193]
[1733963712866,0.78970988,3825.6,3824.1,0.8193]
[1733963713031,2.61425,3825.2,3824.1,1.005831]
[1733963714276,0.31090988,3825.6,3824.2,0.8193]
[1733963714475,0.31090988,3825.9,3825.0,1.04574]
[1733963714636,4.78827896,3826.6,3825.0,0.8193]
[1733963714637,0.31072168,3826.3,3825.0,0.8193]
[1733963714842,2.61337,3826.5,3825.3,1.04566]
[1733963715148,2.61337,3826.5,3825.4,0.8193]
[1733963715347,0.31075046,3826.6,3825.4,1.04563]
[1733963715669,5.48534346,3826.7,3825.5,0.8193]
[1733963715670,5.00654346,3826.7,3825.5,0.8193]
[1733963716129,2.39331346,3826.7,3825.5,0.8193]
[1733963716489,2.61343,3826.4,3825.5,0.8193]
[1733963717264,2.61328,3826.6,3825.5,0.8193]
[1733963717468,2.61328,3826.6,3825.5,1.86491]
[1733963717770,2.61328,3826.6,3825.5,2.051401]
[1733963717930,2.61342,3826.4,3825.5,1.005791]
[1733963718798,2.61329,3826.6,3825.5,2.051391]
[1733963719081,2.61329,3826.6,3825.6,0.8193]
[1733963720256,2.61335,3826.5,3825.6,0.8193]
[1733963720790,1.08747448,3826.9,3825.9,1.04549]
[1733963720938,3.09187,3827.0,3825.9,1.04549]
[1733963720939,2.92414916,3827.0,3826.0,0.8193]
[1733963721133,2.92414916,3827.0,3826.1,0.79683497]
[1733963721134,0.31107916,3827.0,3826.1,0.79683497]
[1733963721468,1.63121172,3827.6,3826.4,0.7707]
[1733963721469,2.39331346,3827.5,3826.4,0.7707]
[1733963721661,0.90106491,3827.4,3826.4,0.7707]
[1733963722000,2.61287,3827.2,3826.4,0.7707]
[1733963722297,2.61308,3826.9,3826.4,0.7707]
[1733963722581,2.39331346,3827.1,3824.7,3.23104379]
[1733963722582,4.49030503,3827.0,3825.6,0.7707]
[1733963722786,2.61325,3826.7,3825.6,0.7707]
[1733963722938,2.61325,3826.7,3825.6,0.952334]
[1733963724991,0.31112487,3826.9,3825.8,0.7707]
[1733963725290,1.39859935,3827.4,3826.0,0.55]
[1733963725488,4.06106811,3827.9,3826.4,0.7707]
[1733963725489,2.61288,3827.2,3826.4,0.7707]
[1733963726680,0.31113895,3827.4,3826.4,0.7707]
[1733963726842,2.39331346,3827.5,3826.4,0.7707]
[1733963727040,2.61262,3827.6,3826.5,0.7707]
[1733963727242,2.6127,3827.5,3826.5,0.7707]
[1733963727894,2.61275,3827.4,3826.5,0.7707]
[1733963728305,0.3111548,3827.8,3826.5,0.7707]
[1733963728456,2.39331346,3827.5,3826.5,0.7707]
[1733963728658,2.61299,3827.1,3826.5,0.7707]
[1733963729907,0.3111548,3827.4,3826.5,0.7707]
[1733963730373,2.61273,3827.5,3826.5,0.7707]
[1733963731314,2.61294,3827.1,3826.5,0.7707]
[1733963731461,2.61307,3827.0,3826.5,0.7707]
[1733963731663,0.3111548,3827.3,3826.5,0.7707]
[1733963731970,2.61287,3827.2,3826.5,0.7707]
[1733963732472,2.67629743,3827.1,3826.5,0.7707]
[1733963732818,0.06334743,3827.1,3826.5,0.7707]
[1733963732963,2.61317,3826.8,3826.5,0.7707]
[1733963733168,2.61349,3826.3,3826.1,0.7707]
[1733963733404,0.0668348,3826.2,3824.5,1.09261689]
[1733963733586,0.0668348,3826.2,3824.8,1.04579]
[1733963733587,2.61371,3826.0,3824.8,1.04579]
[1733963733765,2.61356,3826.2,3824.9,1.04577]
[1733963734117,0.06641325,3826.1,3825.0,0.7707]
[1733963734269,0.06641325,3826.1,3824.9,1.04577]
[1733963734270,0.06641325,3826.1,3825.2,0.7707]
[1733963735377,2.61378,3825.9,3825.2,0.7707]
[1733963735715,0.06609253,3825.8,3825.2,0.7707]
[1733963735872,2.61393,3825.7,3825.2,0.7707]
[1733963736066,2.67970939,3825.7,3825.2,0.7707]
[1733963736431,0.06577939,3825.7,3825.2,0.7707]
[1733963736981,0.06553676,3825.6,3825.2,0.7707]
[1733963737468,2.67956582,3825.5,3825.2,0.7707]
[1733963737702,0.06550582,3825.5,3824.3,1.04593]
[1733963738005,2.61431,3825.1,3824.8,0.8249]
[1733963738206,2.61444,3824.9,3824.8,0.8249]
[1733963738906,0.06501074,3824.9,3824.8,0.8249]
[1733963739268,0.31110432,3825.8,3824.8,0.8249]
[1733963739469,2.61383,3825.8,3824.8,0.8249]
[1733963739669,2.61408,3825.5,3824.8,0.8249]
[1733963740093,0.06476375,3825.4,3824.8,0.8249]
[1733963741167,2.61411,3825.4,3824.8,0.8249]
[1733963741716,0.0647328,3825.3,3824.8,0.8249]
[1733963743573,2.6789028,3825.3,3824.8,0.8249]
[1733963743775,0.0647328,3825.3,3824.8,0.8249]
[1733963744020,2.61395,3825.7,3823.7,3.0]
[1733963744021,0.4788,3825.4,3823.7,3.0]
[1733963744220,2.61446,3824.9,3823.9,0.8249]
[1733963744875,2.67893537,3825.3,3823.9,0.8249]
[1733963744876,0.06457804,3824.8,3823.9,0.8249]
[1733963745076,2.61433,3825.1,3823.9,0.8249]
[1733963745307,2.61433,3825.1,3823.8,2.13540135]
[1733963745308,0.06454709,3824.7,3824.1,0.8249]
[1733963745529,2.61433,3825.1,3824.1,0.8249]
[1733963745702,0.06451613,3824.6,3824.1,0.8249]
[1733963745879,2.61438,3825.0,3824.1,0.8249]
[1733963746213,0.06448517,3824.5,3824.1,0.8249]
[1733963746396,2.61438,3825.0,3824.1,0.8249]
[1733963746639,2.39331346,3825.5,3824.2,1.04596]
[1733963746640,2.61404,3825.5,3824.2,1.04596]
[1733963746941,5.48592346,3825.9,3824.0,0.29603013]
[1733963746942,0.06451127,3824.9,3824.5,0.8249]
[1733963747141,2.61391,3825.7,3824.5,0.8249]
[1733963747350,2.61404,3825.5,3824.5,0.8249]
[1733963747513,0.06472791,3825.6,3824.7,0.8249]
[1733963747731,1.35152531,3826.0,3824.7,0.8249]
[1733963747957,0.06469696,3825.5,3824.7,0.8249]
[1733963748154,1.66280331,3826.0,3824.7,0.8249]
[1733963748458,2.61405,3825.5,3824.7,0.8249]
[1733963748857,0.06466602,3825.4,3824.7,0.8249]
[1733963749461,2.61418,3825.3,3824.7,0.8249]
[1733963749762,2.61428,3825.2,3824.7,0.8249]
[1733963750292,0.06470347,3825.1,3824.7,0.8249]
[1733963751343,2.6139,3825.7,3824.9,0.7797]
[1733963751513,0.06463995,3825.0,3824.9,0.7797]
[1733963751709,2.6139,3825.7,3824.9,0.7797]
[1733963751940,0.06463995,3825.0,3824.9,0.7797]
[1733963752142,0.03654293,3825.9,3824.9,0.7797]
[1733963752355,0.06463995,3825.0,3824.9,0.7797]
[1733963752515,2.61397,3825.6,3824.9,0.7797]
[1733963752718,0.06463995,3825.0,3824.9,0.7797]
[1733963753014,0.06470512,3825.0,3824.9,0.7797]
[1733963753270,2.61411,3825.4,3824.9,0.7797]
[1733963753427,0.06470512,3825.0,3824.9,0.7797]
[1733963753769,0.4788,3825.5,3824.9,0.7797]
[1733963753978,0.06470512,3825.0,3824.9,0.7797]
[1733963754116,2.61424,3825.2,3824.9,0.7797]
[1733963754315,0.06466169,3825.0,3824.9,0.7797]
[1733963754516,2.61424,3825.2,3824.9,0.7797]
[1733963754752,0.06466169,3825.0,3824.9,0.7797]
[1733963754917,2.61396,3825.7,3824.9,0.7797]
[1733963755117,0.06466169,3825.0,3824.9,0.7797]
[1733963755329,2.61415,3825.4,3824.9,0.7797]
[1733963755556,0.06466169,3825.0,3824.9,0.7797]
[1733963755747,2.61396,3825.7,3824.9,0.7797]
[1733963755928,0.06465082,3825.0,3824.9,0.7797]
[1733963756131,2.61397,3825.6,3824.9,0.7797]
[1733963756671,0.06480556,3825.5,3824.9,0.7797]
[1733963756970,2.67883556,3825.5,3824.9,0.7797]
[1733963758158,2.6141,3825.4,3824.9,0.7797]
[1733963758361,2.61431,3825.1,3824.9,0.7797]
[1733963758665,0.06469425,3825.0,3824.9,0.7797]
[1733963759517,2.61418,3825.3,3824.9,0.7797]
[1733963759717,0.06469425,3825.0,3824.9,0.7797]
[1733963759959,2.61418,3825.3,3824.3,0.7797]
[1733963760164,0.06467254,3825.0,3824.5,0.7797]
[1733963760375,0.06473444,3825.2,3824.5,0.7797]
[1733963760573,0.34797754,3825.9,3824.7,0.7797]
[1733963760715,0.03654293,3825.9,3825.0,0.7797]
[1733963761079,0.03654293,3825.9,3825.0,1.04574]
[1733963761080,0.06492011,3825.8,3825.0,1.04574]
[1733963761366,0.06492011,3825.8,3825.2,0.55]
[1733963761600,0.06492011,3825.8,3825.3,0.7797]
[1733963761868,0.06499774,3825.7,3825.3,0.7797]
[1733963762030,2.61384,3825.8,3825.3,0.7797]
[1733963762232,0.06523117,3825.7,3825.3,0.7797]
[1733963762566,2.61384,3825.8,3825.3,0.7797]
[1733963762878,0.06523117,3825.7,3825.3,0.7797]
[1733963763060,2.61384,3825.8,3825.3,0.7797]